[Event "Reykjavik Open 2024"]
[Site "Reykjavik"]
[Date "2024.03.18"]
[Round "5.21"]
[White "Karamsetty, Jeevan"]
[Black "Injac, Teodora"]
[Result "1/2-1/2"]
[ECO "B50"]
[WhiteElo "2187"]
[BlackElo "2434"]
[Annotator "TA"]
[PlyCount "89"]
[EventDate "2024.03.12"]
[EventCountry "ISL"]
[SourceTitle "playchess.com"]
[Source "ChessBase"]
[SourceQuality "1"]
[TimeControl "40/5400+30:1800+30"]

{[%evp 14,89,12,12,2,0,-18,-40,-53,-42,-37,-43,-39,-112,-108,-85,-47,-47,-26,-20,-16,-19,-35,-22,0,0,0,0,0,-8,0,-25,-14,-37,-26,-56,0,0,0,-72,-69,-75,-84,-89,-77,-79,-100,-115,-70,-84,-73,-71,-57,-69,-62,-70,-64,-68,-56,-47,0,0,0,0,0,-22,-18,-22,-31,-26,0,0,0,0,0,0,0,0]} 1. e4 {[%emt 0:02:24]} c5 {[%emt 0:00:26]} 2. Nf3 {[%emt 0:00:16]} d6 {[%emt 0:00:16]} 3. Bc4 {[%emt 0:00:14]} Nf6 {[%emt 0:01:47]} 4. d3 {[%emt 0:00:09]} Nc6 {[%emt 0:00:20]} 5. O-O {[%emt 0:00:25]} g6 {[%emt 0:02:57]} 6. Bb3 {[%emt 0:01:53]} Bg7 {[%emt 0:02:13]} 7. c3 {[%emt 0:00:45]} O-O {[%emt 0:02:28]} 8. h3 {[%emt 0:03:41]} h6 {[%emt 0:14:04]} 9. Nh2 {[%emt 0:17:22]} d5 {[%emt 0:06:31]} 10. exd5 {[%emt 0:12:31]} Nxd5 {[%emt 0:00:16] Black is slightly better.} 11. Qf3 {[%emt 0:01:18]} Be6 {[%emt 0:07:44]} 12. Re1 {[%emt 0:02:48]} Nc7 {[%emt 0:07:58]} (12... Rc8 $5) 13. Ng4 {[%emt 0:10:16]} (13. Nd2 $15) 13... Bxb3 $17 {[%emt 0:04:08]} 14. axb3 {[%emt 0:00:55]} Kh7 {[%emt 0:01:28]} 15. Bf4 {[%emt 0:06:46]} Nd5 {[%emt 0:09:53]} 16. Bh2 {[%emt 0:05:16]} f6 {[%emt 0:05:17]} 17. Ne3 {[%emt 0:05:47]} Nxe3 {[%emt 0:04:56]} 18. Qxe3 {[%emt 0:00:38]} e5 {[%emt 0:00:18]} 19. Qxc5 {[%emt 0:03:37]} Qxd3 {[%emt 0:00:39]} 20. Na3 {[%emt 0:00:19] Prevents Qc2} Rfd8 {[%emt 0:03:25]} 21. Nc4 {[%emt 0:01:33]} Rac8 {[%emt 0:07:42][%cal Oc6d4] ...Nd4! would now be deadly.} 22. Qa3 {[%emt 0:04:08]} Rd5 {[%emt 0:04:55]} 23. Qa2 {[%emt 0:01:42]} f5 {[%emt 0:03:19]} 24. Re3 {[%emt 0:04:05] [#]} Qd1+ {[%emt 0:00:15]} 25. Re1 $1 $11 {[%emt 0:00:08]} Qd3 {[%emt 0:00:01]} ({Better is} 25... Qh5 $11) 26. Re3 $17 {[%emt 0:00:07] [#]} Qc2 {[%emt 0:01:34]} 27. Ree1 {[%emt 0:01:48] [#]} f4 $36 {[%emt 0:00:26][%mdl 2048] Prevents Ne3. Black is really pushing.} 28. Rac1 {[%emt 0:05:10]} Qd3 {[%emt 0:00:08]} 29. b4 {[%emt 0:00:50][%cal Ob4b5]} Rcd8 {[%emt 0:02:32]} 30. Na3 {[%emt 0:04:21]} b5 {[%emt 0:02:12]} 31. Qb1 {[%emt 0:02:18]} Qxb1 {[%emt 0:01:11]} 32. Nxb1 {[%emt 0:00:01]} Bf8 {[%emt 0:00:49]} 33. Kf1 {[%emt 0:00:23]} g5 {[%emt 0:00:32]} 34. f3 {[%emt 0:00:55]} a5 {[%emt 0:00:38]} 35. bxa5 {[%emt 0:00:19]} Nxa5 {[%emt 0:00:01]} 36. Bg1 {[%emt 0:01:26]} Kg6 {[%emt 0:02:33]} (36... Nb3 $15 {is more appropriate.} 37. Rc2 Bd6) 37. Bb6 $11 {[%emt 0:00:28][%csl LRa5,LRd8]} Ra8 {[%emt 0:01:21]} 38. Bxa5 {[%emt 0:01:12]} Rxa5 {[%emt 0:00:01]} 39. Rcd1 {[%emt 0:00:45]} Rxd1 {[%emt 0:00:49]} 40. Rxd1 {[%emt 0:00:01] KRB-KRN} Ra2 {[%emt 0:01:22]} 41. b4 {[%emt 0:12:38]} Rc2 {[%emt 0:01:19]} (41... e4 $5 42. fxe4 Bg7 $11) 42. Re1 {[%emt 0:00:14] The position is equal.} ({Much weaker is} 42. Na3 Rxc3 43. Nxb5 Rc6 $11) 42... Kf5 {[%emt 0:09:50]} 43. Re2 {[%emt 0:00:11]} Rc1+ {[%emt 0:00:07]} 44. Re1 {[%emt 0:00:03]} Rc2 {[%emt 0:01:00]} 45. Re2 {[%emt 0:00:06] Weighted Error Value: White=0.08 (flawless) /Black=0.10 (very precise) .  Mistake:       	White=1     	Black=3      Inaccurate:     	White=1     	Black=3      OK:         	White=12    	Black=12     Best:        	White=3     	Black=3      Strong:       	White=1     	---} 1/2-1/2

[Event "Reykjavik Open 2024"]
[Site "Reykjavik"]
[Date "2024.03.18"]
[Round "5.21"]
[White "Sushanth Kamabathula"]
[Black "Fantinel, Thibault"]
[Result "*"]
[ECO "B50"]
[WhiteElo "1918"]
[BlackElo "2421"]
[Annotator "RC"]
[PlyCount "27"]
[EventDate "2024.03.12"]
[EventCountry "ISL"]
[SourceTitle "playchess.com"]
[Source "ChessBase"]
[SourceQuality "1"]
[TimeControl "40/5400+30:1800+30"]

1. e4 {[%emt 0:02:24]} c5 {[%emt 0:00:26]} 2. Nf3 {[%emt 0:00:16]} d6 {[%emt 0:00:16]} 3. Bc4 {[%emt 0:00:14]} Nf6 {[%emt 0:01:47]} 4. d3 {[%emt 0:00:09]} Nc6 {[%emt 0:00:20]} 5. O-O {[%emt 0:00:25]} g6 {[%emt 0:02:57]} 6. Bb3 {[%emt 0:01:53]} Bg7 {[%emt 0:02:13]} 7. c3 {[%emt 0:00:45]} O-O {[%emt 0:02:28]} 8. h3 {[%emt 0:03:41]} h6 {[%emt 0:14:04]} 9. Nh2 {[%emt 0:17:22]} d5 {[%emt 0:06:31]} 10. exd5 {[%emt 0:12:30]} Nxd5 {[%emt 0:00:16]} 11. Qf3 {[%emt 0:01:18]} Be6 {[%emt 0:07:44]} 12. Re1 {[%emt 0:02:48]} Nc7 {[%emt 0:07:58]} 13. Ng4 {[%emt 0:10:16]} Bxb3 {[%emt 0:04:08]} 14. axb3 {[%emt 0:00:55]} *

[Event "Reykjavik Open 2024"]
[Site "Reykjavik"]
[Date "2024.03.18"]
[Round "5.22"]
[White "Katz, Alexander"]
[Black "Pourkashiyan, Atousa"]
[Result "*"]
[ECO "B32"]
[WhiteElo "2418"]
[BlackElo "2270"]
[Annotator "RC"]
[PlyCount "59"]
[EventDate "2024.03.12"]
[EventCountry "ISL"]
[SourceTitle "playchess.com"]
[Source "ChessBase"]
[SourceQuality "1"]
[TimeControl "40/5400+30:1800+30"]

1. e4 {[%emt 0:00:12]} c5 {[%emt 0:05:26]} 2. Nf3 {[%emt 0:00:09]} Nc6 {[%emt 0:00:04]} 3. d4 {[%emt 0:00:06]} cxd4 {[%emt 0:00:05]} 4. Nxd4 {[%emt 0:00:07]} e5 {[%emt 0:00:03]} 5. Nb5 {[%emt 0:00:07]} d6 {[%emt 0:00:04]} 6. N1c3 {[%emt 0:00:05]} a6 {[%emt 0:00:05]} 7. Na3 {[%emt 0:00:05]} Be6 {[%emt 0:00:10]} 8. Nc4 {[%emt 0:00:05]} Rb8 {[%emt 0:00:10]} 9. Nd5 {[%emt 0:00:13]} Bxd5 {[%emt 0:01:03]} 10. exd5 {[%emt 0:00:06]} Nce7 {[%emt 0:00:09]} 11. a4 {[%emt 0:00:03]} Nf6 {[%emt 0:00:40]} 12. g4 {[%emt 0:00:06]} h6 {[%emt 0:00:56]} 13. h4 {[%emt 0:00:03]} Rc8 {[%emt 0:03:46]} 14. Bd2 {[%emt 0:00:21]} Nfxd5 {[%emt 0:02:48]} 15. Rh3 {[%emt 0:00:16]} Nc6 {[%emt 0:00:03]} 16. Bg2 {[%emt 0:00:06]} Nf4 {[%emt 0:00:56]} 17. Bxf4 {[%emt 0:00:05]} exf4 {[%emt 0:00:02]} 18. Rb3 {[%emt 0:00:09]} Be7 {[%emt 0:00:02]} 19. Rxb7 {[%emt 0:00:11]} O-O {[%emt 0:00:09]} 20. Qd5 {[%emt 0:00:02]} Qe8 {[%emt 0:00:31]} 21. Kf1 {[%emt 0:00:05]} Nd8 {[%emt 0:01:01]} 22. Rb6 {[%emt 0:00:05]} Ne6 {[%emt 0:03:20]} 23. a5 {[%emt 0:00:04]} Rc5 {[%emt 0:06:34]} 24. Qd3 {[%emt 0:03:29]} Qc8 {[%emt 0:06:25]} 25. Bb7 {[%emt 0:00:00]} Qc7 {[%emt 0:16:19]} 26. Bd5 {[%emt 0:00:44]} Rc8 {[%emt 0:04:00]} 27. Rb7 {[%emt 0:08:41]} Qd8 {[%emt 0:00:06]} 28. b4 {[%emt 0:02:28]} R5c7 {[%emt 0:04:00]} 29. Nb6 {[%emt 0:03:43]} Bf6 {[%emt 0:06:47]} 30. Ra2 {[%emt 0:04:02]} *

[Event "Reykjavik Open 2024"]
[Site "Reykjavik"]
[Date "2024.03.18"]
[Round "5.22"]
[White "Sushanth Kamabathula"]
[Black "Fantinel, Thibault"]
[Result "1-0"]
[ECO "B32"]
[WhiteElo "1918"]
[BlackElo "2421"]
[Annotator "TA"]
[PlyCount "81"]
[EventDate "2024.03.12"]
[EventCountry "ISL"]
[SourceTitle "playchess.com"]
[Source "ChessBase"]
[SourceQuality "1"]
[TimeControl "40/5400+30:1800+30"]

{[%evp 14,81,22,26,41,24,29,14,23,15,22,20,18,0,0,0,0,0,12,16,39,37,39,10,12,0,0,0,0,0,7,0,0,0,26,30,24,13,43,0,156,155,145,124,102,78,134,63,58,54,114,97,46,134,290,275,389,393,607,586,583,576,575,543,1151,1101,2079,2151,1804,1715]} 1. e4 {[%emt 0:00:12]} c5 {[%emt 0:05:26]} 2. Nf3 {[%emt 0:00:09]} Nc6 {[%emt 0:00:04]} 3. d4 {[%emt 0:00:06]} cxd4 {[%emt 0:00:05]} 4. Nxd4 {[%emt 0:00:07]} e5 {[%emt 0:00:03]} 5. Nb5 {[%emt 0:00:07]} d6 {[%emt 0:00:04]} 6. N1c3 {[%emt 0:00:05]} a6 {[%emt 0:00:05]} 7. Na3 {[%emt 0:00:05]} Be6 {[%emt 0:00:10]} 8. Nc4 {[%emt 0:00:05]} Rb8 {[%emt 0:00:10]} 9. Nd5 {[%emt 0:00:13]} Bxd5 {[%emt 0:01:03]} 10. exd5 {[%emt 0:00:06]} (10. Qxd5 Nd4 11. Ne3 Nf6 $15) 10... Nce7 {[%emt 0:00:09] Die Stellung ist ausgeglichen.} 11. a4 {[%emt 0:00:03]} Nf6 {[%emt 0:00:40]} 12. g4 {[%emt 0:00:06]} h6 {[%emt 0:00:56][%cal Ob8c8]} 13. h4 {[%emt 0:00:03]} Rc8 {[%emt 0:03:46]} 14. Bd2 {[%emt 0:00:21]} Nfxd5 {[%emt 0:02:48]} 15. Rh3 {[%emt 0:00:16][%cal Bh1h3,Bh3b3,Bb3b7][%mdl 32]} Nc6 {[%emt 0:00:03]} 16. Bg2 {[%emt 0:00:06]} Nf4 {[%emt 0:00:56]} 17. Bxf4 {[%emt 0:00:05]} exf4 {[%emt 0:00:02]} 18. Rb3 {[%emt 0:00:09] Schwarz ist schwach auf den weissen Feldern} (18. Rd3 {sieht schärfer aus.} Nb4 19. Qe2+ Qe7 20. Nxd6+ Kd7 21. Nxc8+ Nxd3+ 22. cxd3 Kxc8 23. Rc1+) 18... Be7 $1 {[%emt 0:00:02]} 19. Rxb7 {[%emt 0:00:11]} O-O {[%emt 0:00:09]} 20. Qd5 {[%emt 0:00:02] Weiss will 0-0-0 spielen.} Qe8 {[%emt 0:00:31][%cal Oc6d8]} 21. Kf1 {[%emt 0:00:05] [#] Und jetzt Re1 wäre schön.} Nd8 $1 {[%emt 0:01:01]} (21... Ne5 $6 22. Re1 (22. Nxd6 $2 Bxd6 23. Qxd6 f3 $19) (22. Nxe5 dxe5 23. Qxe5 Bxh4 $14) 22... Rxc4 (22... f3 $2 23. Bxf3 Rxc4 24. Rxe5 $18) 23. Rxe5 dxe5 24. Qxc4 Bxh4 25. Bd5 $16 (25. Qxa6 $2 e4 $19)) 22. Rb6 {[%emt 0:00:05]} (22. Nxd6 $2 Bxd6 23. Qxd6 Nxb7 24. Bxb7 Rxc2 25. Qxf4 Rxb2 $19) 22... Ne6 $1 {[%emt 0:03:20]} 23. a5 {[%emt 0:00:04]} (23. Rxa6 $2 Nc7 (23... Bxh4 $2 24. Nxd6 Qd8 25. Nxc8 $18) 24. Qa5 Nxa6 (24... Bxh4 $2 25. Nxd6 Qd8 26. Rc6 $18) (24... f3 25. Bxf3 Nxa6 26. Qxa6 $15) 25. Qxa6 Bxh4 $17) 23... Rc5 {[%emt 0:06:34]} 24. Qd3 {[%emt 0:09:53]} Qc8 {[%emt 0:06:25]} 25. Bb7 {[%emt 0:00:00]} (25. Nxd6 Bxd6 26. Rxd6 Rxc2 $15) 25... Qc7 {[%emt 0:16:19]} 26. Bd5 $36 {[%emt 0:00:44][%mdl 2048] Droht stark b4. Weiss hat Initiative.} (26. Bxa6 d5 (26... Bxh4 27. b4 $16) 27. Nd2 Rxa5 28. Rxa5 Qxb6 $19) (26. Nxd6 $2 Rd8 27. Qxa6 (27. b4 $2 Rxc2 28. Rd1 Bxd6 $19) 27... Bxd6 $19 (27... Rxd6 $2 28. Rxd6 Bxd6 29. Be4 $19)) 26... Rc8 $2 {[%emt 0:04:00]} ({Günstiger ist} 26... Bxh4 $11 27. b3 (27. Rxd6 $2 f3 $19) 27... Bf6) 27. Rb7 $16 {[%emt 0:08:41]} (27. Rxa6 $6 f3 28. Ne3 (28. Qxf3 $2 Rxc4 29. Rb6 Rxc2 $19) 28... Bxh4 $14) 27... Qd8 {[%emt 0:00:06]} 28. b4 {[%emt 0:02:28] Weiß hat aktiveres Spiel.} R5c7 {[%emt 0:04:00]} 29. Nb6 {[%emt 0:03:43][%cal Bc4b6,Bb6d5,Bd5c3,Bc3b5][%mdl 32]} Bf6 {[%emt 0:06:47]} (29... Rxb7 $142 30. Bxb7 Rc7) 30. Ra2 {[%emt 0:04:02]} (30. Rxc7 $16 Rxc7 31. Re1) 30... Rxb7 $14 {[%emt 0:09:37]} 31. Bxb7 {[%emt 0:00:36]} Rc3 {[%emt 0:00:04]} ({Besser ist} 31... Rb8 $14 32. Bd5 (32. Qxa6 Bd4 $11) 32... Nc7) 32. Qxa6 $16 {[%emt 0:00:23]} Nc7 {[%emt 0:01:29] Pariert Nd5.} 33. Qe2 {[%emt 0:00:22] a6 wäre nun fies.} Bd4 $2 {[%emt 0:03:52] [#] Führt Schwarz ins Verderben.} (33... d5 $16 34. Qd1 Be5) 34. Nd5 $1 $18 {[%emt 0:02:25]} f3 {[%emt 0:03:45]} (34... Nxd5 $142 35. Bxd5 Rh3) 35. Qe7 {[%emt 0:05:06]} Qb8 {[%emt 0:02:06]} (35... Qxe7 $142 36. Nxe7+ Kf8) 36. Nxc3 {[%emt 0:07:07] Weiß steht klar auf Gewinn.} Qxb7 {[%emt 0:00:04]} 37. Qd8+ {[%emt 0:00:05]} Kh7 {[%emt 0:00:12]} 38. Qxd6 {[%emt 0:00:05]} Nb5 {[%emt 0:05:31]} 39. Qd5 {[%emt 0:00:28]} Qc7 {[%emt 0:06:30]} 40. Nxb5 {[%emt 0:00:13]} Qh2 {[%emt 0:00:03]} 41. Qxf3 {[%emt 0:30:05] Gewichteter Fehlerwert: Weiß=0.07 (makellos) /Schwarz=0.42.  Fehler:       	Weiß=1     	Schwarz=6     Ungenau:       	Weiß=1     	Schwarz=3     OK:         	Weiß=17    	Schwarz=9     Bester:       	Weiß=2     	Schwarz=4     Stark:        	Weiß=1     	Schwarz=3} (41. Nxd4 $2 Qh1#) 1-0

[Event "Reykjavik Open 2024"]
[Site "Reykjavik"]
[Date "2024.03.18"]
[Round "5.23"]
[White "Katz, Alexander"]
[Black "Pourkashiyan, Atousa"]
[Result "1-0"]
[ECO "C54"]
[WhiteElo "2418"]
[BlackElo "2270"]
[Annotator "RC"]
[PlyCount "51"]
[EventDate "2024.03.12"]
[EventCountry "ISL"]
[SourceTitle "playchess.com"]
[Source "ChessBase"]
[SourceQuality "1"]
[TimeControl "40/5400+30:1800+30"]

1. e4 {[%emt 0:00:12]} e5 {[%emt 0:05:39]} 2. Nf3 {[%emt 0:00:24]} Nc6 {[%emt 0:00:07]} 3. Bc4 {[%emt 0:01:17]} Bc5 {[%emt 0:03:54]} 4. c3 {[%emt 0:00:27]} Nf6 {[%emt 0:00:09]} 5. d3 {[%emt 0:00:02]} a6 {[%emt 0:00:31]} 6. O-O {[%emt 0:00:23]} d6 {[%emt 0:00:13]} 7. Bb3 {[%emt 0:00:25]} Ba7 {[%emt 0:00:35]} 8. Nbd2 {[%emt 0:01:09]} O-O {[%emt 0:00:30]} 9. h3 {[%emt 0:00:10]} h6 {[%emt 0:00:18]} 10. Re1 {[%emt 0:00:10]} Re8 {[%emt 0:00:22]} 11. Nf1 {[%emt 0:00:47]} Be6 {[%emt 0:00:15]} 12. Ng3 {[%emt 0:02:00]} Qd7 {[%emt 0:01:41]} 13. Nh4 {[%emt 0:01:11]} Bxh3 {[%emt 0:11:28]} 14. gxh3 {[%emt 0:00:57]} Qxh3 {[%emt 0:00:08]} 15. Nhf5 {[%emt 0:01:06]} Ng4 {[%emt 0:02:38]} 16. Qf3 {[%emt 0:00:58]} Bxf2+ {[%emt 0:35:50]} 17. Qxf2 {[%emt 0:02:01]} Nxf2 {[%emt 0:00:08]} 18. Kxf2 {[%emt 0:00:13]} g6 {[%emt 0:13:22]} 19. Nxh6+ {[%emt 0:05:33]} Kg7 {[%emt 0:00:29]} 20. Rh1 {[%emt 0:00:40]} Qd7 {[%emt 0:02:42]} 21. Ngf5+ {[%emt 0:05:18]} Kf8 {[%emt 0:02:16]} 22. Ng4 {[%emt 0:01:50]} gxf5 {[%emt 0:03:30]} 23. Bh6+ {[%emt 0:00:13]} Ke7 {[%emt 0:00:25]} 24. Bg5+ {[%emt 0:00:06]} Kf8 {[%emt 0:00:31]} 25. Rh8+ {[%emt 0:00:08]} Kg7 {[%emt 0:00:29]} 26. Bf6+ {[%emt 0:00:05]} 1-0

[Event "Reykjavik Open 2024"]
[Site "Reykjavik"]
[Date "2024.03.18"]
[Round "5.23"]
[White "Harish, Neeraj"]
[Black "Garifullina, Leya"]
[Result "*"]
[ECO "C54"]
[WhiteElo "2090"]
[BlackElo "2413"]
[Annotator "RC"]
[PlyCount "39"]
[EventDate "2024.03.12"]
[EventCountry "ISL"]
[SourceTitle "playchess.com"]
[Source "ChessBase"]
[SourceQuality "1"]
[TimeControl "40/5400+30:1800+30"]

1. e4 {[%emt 0:00:12]} e5 {[%emt 0:05:39]} 2. Nf3 {[%emt 0:00:24]} Nc6 {[%emt 0:00:07]} 3. Bc4 {[%emt 0:01:17]} Bc5 {[%emt 0:03:54]} 4. c3 {[%emt 0:00:27]} Nf6 {[%emt 0:00:09]} 5. d3 {[%emt 0:00:02]} a6 {[%emt 0:00:31]} 6. O-O {[%emt 0:00:23]} d6 {[%emt 0:00:13]} 7. Bb3 {[%emt 0:00:25]} Ba7 {[%emt 0:00:35]} 8. Nbd2 {[%emt 0:01:09]} O-O {[%emt 0:00:30]} 9. h3 {[%emt 0:00:10]} h6 {[%emt 0:00:18]} 10. Re1 {[%emt 0:00:10]} Re8 {[%emt 0:00:22]} 11. Nf1 {[%emt 0:00:47]} Be6 {[%emt 0:00:15]} 12. Ng3 {[%emt 0:02:00]} Qd7 {[%emt 0:01:41]} 13. Nh4 {[%emt 0:01:11]} Bxh3 {[%emt 0:11:28]} 14. gxh3 {[%emt 0:00:57]} Qxh3 {[%emt 0:00:08]} 15. Nhf5 {[%emt 0:01:06]} Ng4 {[%emt 0:02:38]} 16. Qf3 {[%emt 0:00:58]} Bxf2+ {[%emt 0:35:50]} 17. Qxf2 {[%emt 0:02:01]} Nxf2 {[%emt 0:00:08]} 18. Kxf2 {[%emt 0:00:13]} g6 {[%emt 0:13:22]} 19. Nxh6+ {[%emt 0:05:33]} Kg7 {[%emt 0:00:29]} 20. Rh1 {[%emt 0:00:40]} *

[Event "Reykjavik Open 2024"]
[Site "Reykjavik"]
[Date "2024.03.18"]
[Round "5.24"]
[White "Jin, Yueheng"]
[Black "Mannion, Stephen R"]
[Result "1-0"]
[ECO "A57"]
[WhiteElo "2404"]
[BlackElo "2166"]
[Annotator "TA"]
[PlyCount "113"]
[EventDate "2024.03.12"]
[EventCountry "ISL"]
[SourceTitle "playchess.com"]
[Source "ChessBase"]
[SourceQuality "1"]
[TimeControl "40/5400+30:1800+30"]

{[%evp 17,113,33,39,37,39,0,0,-1,-8,-10,-10,-22,-17,-10,-8,-28,-24,-27,-20,-68,0,0,39,34,68,65,70,66,65,68,95,87,95,92,95,81,92,76,87,43,92,95,85,89,81,44,110,0,77,80,78,71,82,83,77,55,149,156,166,149,196,154,184,166,185,152,194,187,202,202,206,222,222,208,329,238,238,253,239,238,238,232,238,238,253,238,253,238,238,238,652,635,585,573,925,925,1104,1002]} 1. d4 {[%emt 0:00:03]} Nf6 {[%emt 0:00:39]} 2. c4 {[%emt 0:00:04]} c5 {[%emt 0:00:04]} 3. d5 {[%emt 0:00:03]} b5 {[%emt 0:00:05]} 4. cxb5 {[%emt 0:00:03]} a6 {[%emt 0:00:03]} 5. e3 {[%emt 0:00:04]} e6 {[%emt 0:00:10]} 6. Nc3 {[%emt 0:00:23]} exd5 {[%emt 0:00:15]} 7. Nxd5 {[%emt 0:00:06]} Bb7 {[%emt 0:00:10]} 8. Nxf6+ {[%emt 0:00:07]} Qxf6 {[%emt 0:00:09]} 9. Nf3 {[%emt 0:00:15]} Be7 {[%emt 0:03:14]} 10. Bc4 {[%emt 0:05:29]} O-O {[%emt 0:06:59]} 11. Bd5 {[%emt 0:04:22]} Bxd5 {[%emt 0:02:48]} 12. Qxd5 {[%emt 0:00:15] Die Stellung ist ausgeglichen.} Ra7 {[%emt 0:00:07]} 13. Qc4 {[%emt 0:20:14]} axb5 {[%emt 0:04:42]} 14. Qxb5 {[%emt 0:00:02]} Nc6 {[%emt 0:03:33][%cal Bb8c6,Bc6a5,Ba5b3,Bb3d2][%mdl 32]} 15. O-O {[%emt 0:00:59]} Qe6 {[%emt 0:07:26][%cal Of8b8]} 16. Rd1 {[%emt 0:05:42]} Rb8 {[%emt 0:06:32][%mdl 1024] Schwarz hat Kompensation.} 17. Qe2 {[%emt 0:01:10]} Bf6 {[%emt 0:00:59][%cal Od7d5]} 18. Qc2 {[%emt 0:05:48]} (18. e4 $11) 18... d6 {[%emt 0:04:22]} (18... c4 $1 $15) 19. a3 $11 {[%emt 0:19:25]} Na5 {[%emt 0:21:03]} 20. Rb1 {[%emt 0:03:07]} Nb3 {[%emt 0:06:24]} 21. Bd2 {[%emt 0:01:01]} Nxd2 {[%emt 0:10:10]} 22. Nxd2 {[%emt 0:00:25]} Rab7 {[%emt 0:01:04]} 23. b3 {[%emt 0:00:50]} Be7 {[%emt 0:01:48]} 24. e4 {[%emt 0:05:16]} Bf6 {[%emt 0:02:11]} 25. Nc4 {[%emt 0:01:06]} Bd4 {[%emt 0:02:11]} 26. h3 {[%emt 0:11:08]} h6 {[%emt 0:01:33]} 27. Rd3 {[%emt 0:04:11]} Ra7 {[%emt 0:02:14]} 28. Rf3 {[%emt 0:04:48]} d5 {[%emt 0:03:43]} (28... Re8 $14 {sieht stärker aus.}) 29. exd5 $16 {[%emt 0:00:06]} Qxd5 {[%emt 0:00:03]} 30. Re1 {[%emt 0:01:10]} Rab7 {[%emt 0:03:58]} 31. Na5 {[%emt 0:01:48]} Rd7 {[%emt 0:02:35]} ({Besser ist} 31... Rb5 $14 32. Nc4 R5b7) 32. Nc4 {[%emt 0:00:08]} (32. Qe4 {vereinfacht} Qxe4 33. Rxe4 Rd6 34. Nc4) 32... Rdb7 {[%emt 0:00:30] Verhindert Nb6} 33. a4 {[%emt 0:01:09][%cal Ba3a4,Ba4a5][%mdl 32]} g6 {[%emt 0:01:44]} 34. a5 {[%emt 0:01:01]} Kg7 {[%emt 0:00:14]} 35. Nb6 $36 {[%emt 0:00:51][%mdl 2048] Läuft bei Weiss.} Qd6 {[%emt 0:00:51]} 36. Rd3 {[%emt 0:01:52][%cal Ob3b4] Weiß steht aktiver.} Rxb6 {[%emt 0:01:55] Damit ist Schwarz auf der Verliererstraße.} (36... Re7 $14 37. Rxe7 Qxe7) 37. axb6 {[%emt 0:00:02]} Rxb6 {[%emt 0:00:06]} 38. Rf3 {[%emt 0:00:40]} Rb7 {[%emt 0:01:22]} (38... Rb4 $16 39. Re4 Qd7) 39. Qe4 {[%emt 0:01:02]} Ra7 {[%emt 0:00:53]} 40. Qe8 {[%emt 0:00:23]} Rb7 {[%emt 0:00:28]} 41. Re2 {[%emt 0:33:14]} Ra7 {[%emt 0:02:03]} 42. g3 {[%emt 0:00:00]} Bf6 {[%emt 0:07:19]} 43. Kg2 {[%emt 0:00:00]} Ra1 {[%emt 0:02:22]} 44. Re1 {[%emt 0:00:00] [#] Verhindert Qd1. Droht stark Rxa1.} Ra2 {[%emt 0:02:00]} 45. Qe4 {[%emt 0:00:00]} Rb2 {[%emt 0:00:55]} (45... Ra6 $142 46. Qc2 Qd5) 46. Re2 {[%emt 0:00:00]} Rxe2 {[%emt 0:05:43]} 47. Qxe2 $18 {[%emt 0:00:00][%mdl 4096] Endspiel. KQR-KQB} Qd5 {[%emt 0:00:12]} 48. Kh2 {[%emt 0:00:00]} Bd4 {[%emt 0:01:05]} 49. Rd3 {[%emt 0:00:00]} Qb7 {[%emt 0:02:23]} 50. Qf3 {[%emt 0:00:00]} Qb5 {[%emt 0:01:30][%cal Od4f2]} 51. Kg2 {[%emt 0:00:00]} h5 {[%emt 0:02:53]} 52. h4 {[%emt 0:00:00]} Qa6 {[%emt 0:04:09]} 53. Rd2 {[%emt 0:00:00]} Bf6 $2 {[%emt 0:01:01]} (53... Qe6 54. Re2 Qd6) 54. Rd7 {[%emt 0:00:00] Zielt auf Qd5 ab. Weiß steht klar auf Gewinn.} Qe6 {[%emt 0:01:36]} 55. Qd5 {[%emt 0:00:00]} Qe8 {[%emt 0:00:09]} 56. Rc7 {[%emt 0:00:00]} Bd4 {[%emt 0:01:06] [#]} 57. b4 $1 {[%emt 0:00:00] Gewichteter Fehlerwert: Weiß=0.15 (sehr präzise) /Schwarz=0.28 (präzise) .  Fehler:       	Weiß=1     	Schwarz=7     Ungenau:       	Weiß=3     	Schwarz=3     OK:         	Weiß=17    	Schwarz=11    Bester:       	Weiß=3     	---} 1-0